bitfinex-derivatives/quotes_ETHF0:USTF0_20250321
["timestamp","ask_amount","ask_price","bid_price","bid_amount"]
[1742574533003,4.45864,1962.4,1962.3,2.35565834]
[1742574533695,4.45864,1962.4,1962.3,1.33595834]
[1742574534091,5.82304,1962.4,1962.3,1.33595834]
[1742574535294,5.82304,1962.4,1962.3,2.35565834]
[1742574535495,5.82304,1962.4,1962.3,1.33595834]
[1742574535889,5.82304,1962.4,1962.3,2.35565834]
[1742574536293,5.82304,1962.4,1962.3,1.33595834]
[1742574537502,5.82304,1962.4,1962.3,2.35565834]
[1742574537701,4.45864,1962.4,1962.3,2.35565834]
[1742574537999,4.45864,1962.4,1962.3,1.33595834]
[1742574538201,5.85134,1962.4,1962.3,1.33595834]
[1742574539695,3.439,1962.4,1962.3,2.35565834]
[1742574539900,4.45864,1962.4,1962.3,2.35565834]
[1742574540495,4.45864,1962.4,1962.3,1.33595834]
[1742574540704,5.81094,1962.4,1962.3,1.33595834]
[1742574541709,6.67513975,1962.4,1962.3,1.33595834]
[1742574542195,1.0198,1962.1,1962.0,0.6834]
[1742574542397,1.02005,1961.7,1961.6,1.02003]
[1742574542602,1.02005,1961.7,1961.6,1.68443]
[1742574542804,3.439,1961.8,1961.7,1.02001]
[1742574543105,3.439,1961.8,1961.7,4.22781]
[1742574543498,3.439,1961.8,1961.7,5.53451]
[1742574544597,4.45896,1961.8,1961.7,5.53451]
[1742574545500,3.439,1961.8,1961.7,5.53451]
[1742574545699,4.45896,1961.8,1961.7,5.53451]
[1742574546300,4.45896,1961.8,1961.7,1.3067]
[1742574546799,4.45896,1961.8,1961.7,2.32671]
[1742574546998,4.45896,1961.8,1961.7,1.3067]
[1742574549309,1.02001,1961.7,1961.6,0.00765834]
[1742574549511,2.96661,1961.7,1961.6,0.00765834]
[1742574552248,2.30681,1961.7,1961.6,0.00765834]
[1742574552402,2.30681,1961.7,1961.6,1.02771834]
[1742574552708,3.439,1961.7,1961.6,4.23551834]
[1742574553104,1.02759834,1961.9,1961.8,1.01996]
[1742574553311,4.46659834,1961.9,1961.8,1.01996]
[1742574553512,3.44665834,1961.9,1961.8,1.01996]
[1742574553808,4.46655834,1961.9,1961.8,2.30916]
[1742574554214,4.46655834,1961.9,1961.8,1.2892]
[1742574554413,5.79785834,1961.9,1961.8,1.2892]
[1742574555615,1.02001,1961.7,1961.6,4.23550834]
[1742574555911,4.45901,1961.7,1961.6,3.21545834]
[1742574557114,4.45901,1961.7,1961.6,1.31865834]
[1742574558419,1.02001,1961.7,1961.6,5.54651834]
[1742574558708,4.45901,1961.7,1961.6,5.54651834]
[1742574559512,4.45901,1961.7,1961.6,1.31865834]
[1742574560214,5.75221,1961.7,1961.6,1.31865834]
[1742574568615,4.45901,1961.7,1961.6,1.31865834]
[1742574568814,5.79541,1961.7,1961.6,1.31865834]
[1742574572727,6.65991901,1961.7,1961.6,1.31865834]
[1742574573821,1.02016,1961.4,1961.3,0.6753]
[1742574574024,4.45916,1961.4,1961.3,2.0389]
[1742574574618,1.02027,1961.2,1961.1,3.2078]
[1742574574932,1.02032,1961.1,1961.0,0.711]
[1742574575125,2.55107,1960.9,1960.5,3.63780001]
[1742574575424,2.55107,1960.9,1960.7,0.7067]
[1742574575425,5.79898,1960.8,1960.7,0.7067]
[1742574577921,5.79898,1960.8,1960.7,2.0119]
[1742574584434,1.02058,1960.6,1960.5,0.00765834]
[1742574584730,4.45958,1960.6,1960.5,0.00765834]
[1742574585128,6.65169324,1960.6,1960.5,0.00765834]
[1742574591934,6.65169101,1960.6,1960.5,0.00765834]
[1742574593637,6.65169119,1960.6,1960.5,0.00765834]
[1742574598348,6.65169515,1960.6,1960.5,0.00765834]
[1742574598555,6.65269515,1960.6,1960.5,0.00765834]
[1742574598751,6.65269515,1960.6,1960.5,1.02828834]
[1742574598752,4.46058,1960.6,1960.5,1.02828834]
[1742574598949,1.02058,1960.6,1960.5,0.00765834]
[1742574599290,4.45958,1960.6,1960.5,1.40245834]
[1742574599843,4.45958,1960.6,1960.5,2.42308834]
[1742574600245,3.439,1960.6,1960.5,1.40245834]
[1742574600441,4.45958,1960.6,1960.5,2.42308834]
[1742574601047,4.45958,1960.6,1960.5,1.40245834]
[1742574601247,3.439,1960.6,1960.5,2.42308834]
[1742574601452,4.45958,1960.6,1960.5,2.42308834]
[1742574601652,1.02058,1960.6,1960.5,2.42308834]
[1742574601852,1.02058,1960.6,1960.5,2.42304834]
[1742574602260,1.02058,1960.6,1960.5,1.40245834]
[1742574602556,2.36008,1960.6,1960.5,1.40245834]
[1742574602950,2.36008,1960.6,1960.3,0.688]
[1742574602951,1.02068,1960.4,1960.3,0.688]
[1742574603148,4.45968,1960.4,1960.3,1.3849]
[1742574603576,5.79918,1960.4,1960.3,1.3849]
[1742574603753,4.45968,1960.4,1960.3,1.3849]
[1742574604254,4.45968,1960.4,1960.3,2.40564]
[1742574604459,4.45968,1960.4,1960.3,1.3849]
[1742574604664,5.79918,1960.4,1960.3,1.3849]
[1742574605061,1.02074,1960.3,1960.2,0.00510554]
[1742574605359,3.74074,1960.3,1960.2,0.00510554]
[1742574605561,1.02074,1960.3,1960.2,0.00510554]
[1742574605763,1.02074,1960.3,1960.2,1.02589554]
[1742574605962,4.45973,1960.4,1960.3,1.02074]
[1742574606158,4.45968,1960.4,1960.3,0.694]
[1742574606363,1.02074,1960.3,1960.2,1.39570554]
[1742574606559,4.45971,1960.4,1960.2,1.39570554]
[1742574606781,1.02074,1960.3,1960.2,1.39570554]
[1742574607265,0.6849,1960.6,1960.2,1.39570554]
[1742574607459,1.02058,1960.6,1960.5,1.02063]
[1742574607764,4.45958,1960.6,1960.5,1.02063]
[1742574608453,3.439,1960.6,1960.5,1.02063]
[1742574608665,4.45958,1960.6,1960.5,2.31013]
[1742574609067,3.439,1960.6,1960.5,2.31013]
[1742574609253,1.35675834,1960.9,1960.8,1.02048]
[1742574609458,0.00765834,1960.9,1960.8,4.22828]
[1742574609863,1.02035,1961.1,1960.8,5.7078]
[1742574609864,1.02032,1961.1,1960.8,5.7078]
[1742574610059,6.6468,1961.2,1961.1,1.02032]
[1742574610255,6.6468,1961.2,1960.9,42.0895]
[1742574610455,1.02032,1961.1,1961.0,1.2895]
[1742574610660,1.02058,1960.6,1960.5,0.43000001]
[1742574610867,1.02058,1960.6,1960.5,2.37220001]
[1742574611066,1.02058,1960.6,1960.5,1.9422]
[1742574611259,2.36968,1960.6,1960.5,1.2895]
[1742574611465,3.03668,1960.6,1960.5,1.2895]
[1742574611961,3.9007544,1960.6,1960.5,1.2895]
[1742574612162,3.69638,1960.6,1960.5,1.2895]
[1742574612356,1.02058,1960.6,1960.5,1.2895]
[1742574612560,4.45958,1960.6,1960.5,1.2895]
[1742574612761,3.439,1960.6,1960.5,2.31013]
[1742574612962,0.00765834,1960.7,1960.6,1.02058]
[1742574613162,3.44665834,1960.7,1960.6,3.06298]
[1742574613569,4.46718834,1960.7,1960.6,1.373]
[1742574613864,5.13418834,1960.7,1960.6,1.373]
[1742574614070,4.46718834,1960.7,1960.6,1.373]
[1742574614464,0.00765834,1960.7,1960.6,1.373]
[1742574614662,4.46618834,1960.7,1960.6,1.373]
[1742574615266,5.12798834,1960.7,1960.6,1.373]
[1742574615773,1.02063,1960.5,1960.4,0.6694]
[1742574616066,1.02072,1960.4,1960.2,1.02588554]
[1742574616289,1.02072,1960.4,1960.3,1.3268]
[1742574616470,4.45872,1960.4,1960.3,0.6732]
[1742574616969,4.45872,1960.4,1960.3,1.69394]
[1742574617170,4.45872,1960.4,1960.3,3.03714]
[1742574617561,3.438,1960.4,1960.3,3.03714]
[1742574618571,4.45868,1960.4,1960.3,2.0164]
[1742574618763,5.82438,1960.4,1960.3,2.0164]
[1742574620471,1.02074,1960.3,1960.2,0.00510554]
[1742574620674,3.70214,1960.3,1960.2,1.36860554]
[1742574623076,1.02071,1960.4,1960.2,2.38939554]
[1742574623279,4.45874,1960.3,1960.2,2.38939554]
[1742574623477,4.45874,1960.3,1960.2,1.36860554]
[1742574623771,4.45874,1960.3,1960.2,2.38939554]
[1742574624078,3.438,1960.3,1960.2,2.38939554]
[1742574624273,4.45874,1960.3,1960.2,1.36860554]
[1742574625176,4.45874,1960.3,1960.2,5.59719554]
[1742574625366,4.1367,1960.6,1960.5,1.02063]
[1742574625567,3.44565834,1960.7,1960.6,1.02058]
[1742574625879,4.46618834,1960.7,1960.6,1.02058]
[1742574626176,0.00765834,1960.7,1960.6,1.02058]
[1742574626376,0.00765834,1960.7,1960.6,4.22838]
[1742574627079,1.02818834,1960.7,1960.6,4.22838]
[1742574627375,1.02818834,1960.7,1960.6,2.0014]
[1742574627580,1.02063,1960.5,1960.4,3.2078]
[1742574627776,1.02068,1960.4,1960.3,2.85714001]
[1742574627971,1.02068,1960.4,1960.3,1.14250001]
[1742574628175,4.45868,1960.4,1960.3,1.14250001]
[1742574628479,4.45868,1960.4,1960.3,2.16324001]
[1742574628680,0.6781,1960.6,1960.3,1.14250001]
[1742574628876,0.00765834,1960.7,1960.6,1.02058]
[1742574629072,0.00765834,1960.7,1960.6,3.71268]
[1742574629779,0.00765834,1960.7,1960.6,6.64268001]
[1742574629976,0.00765834,1960.7,1960.6,4.14268001]
[1742574630376,0.00765834,1960.7,1960.6,6.64268001]
[1742574630683,0.00765834,1960.7,1960.6,4.14268001]
[1742574632379,2.5503,1961.5,1960.8,2.55114]
[1742574632678,2.5503,1961.5,1961.1,1.02028]
[1742574632679,2.32752,1961.2,1961.1,1.02028]
[1742574632875,5.76552,1961.2,1961.1,1.02028]
[1742574633071,1.02032,1961.1,1961.0,2.0301]
[1742574633277,2.36142,1961.1,1961.0,2.37827]
[1742574633484,3.02152,1961.1,1961.0,2.37827]
[1742574633780,2.36142,1961.1,1961.0,2.37827]
[1742574634289,5.79842,1961.1,1961.0,2.37827]
[1742574634784,3.437,1961.1,1961.0,2.37827]
[1742574634984,5.79842,1961.1,1961.0,1.3579]
[1742574635183,5.79842,1961.1,1961.0,2.37827]
[1742574635382,5.79842,1961.1,1961.0,1.3579]
[1742574635582,5.79842,1961.1,1961.0,2.37827]
[1742574635778,3.437,1961.1,1961.0,2.37827]
[1742574635983,0.00765834,1961.2,1961.1,1.02032]
[1742574636276,1.02037,1961.0,1960.9,4.91891]
[1742574636478,1.02042,1960.9,1960.8,1.02044]
[1742574636789,1.02053,1960.7,1960.6,1.45055001]
[1742574636987,1.02053,1960.7,1960.6,0.6455]
[1742574637187,1.02053,1960.7,1960.6,1.66608]
[1742574637677,4.782,1960.7,1960.4,1.02064]
[1742574637876,1.02062,1960.6,1960.5,2.37273]
[1742574638082,1.02062,1960.6,1960.5,3.2078]
[1742574638083,2.36562,1960.6,1960.5,3.2078]
[1742574638284,1.02063,1960.5,1960.4,1.3521]
[1742574638499,5.80263,1960.5,1960.4,1.3521]
[1742574638878,5.80263,1960.5,1960.4,2.37278]
[1742574639787,4.782,1960.5,1960.4,2.37278]
[1742574640081,1.3629,1960.8,1960.4,1.3521]
[1742574640288,2.38338,1960.8,1960.7,3.2078]
[1742574640478,1.02054,1960.7,1960.5,4.5594]
[1742574640680,1.02054,1960.7,1960.6,1.02054]
[1742574640879,1.02054,1960.7,1960.6,1.66774]
[1742574641079,5.82041,1960.8,1960.7,1.02053]
[1742574641489,5.82041,1960.8,1960.7,2.37213]
[1742574641881,5.82041,1960.8,1960.5,3.2078]
[1742574641882,1.02058,1960.6,1960.5,1.02059]
[1742574642083,4.45758,1960.6,1960.5,2.38669]
[1742574642482,5.83028,1960.6,1960.5,2.38669]
[1742574642992,3.437,1960.6,1960.5,5.59449]
[1742574644687,1.3727,1960.7,1960.6,1.02058]
[1742574644893,4.8097,1960.7,1960.6,2.35648]
[1742574645091,3.437,1960.7,1960.6,2.35648]
[1742574645287,3.437,1960.7,1960.6,3.06848]
[1742574645686,3.437,1960.9,1960.8,1.02048]
[1742574645881,3.437,1960.9,1960.8,4.22828]
[1742574646388,3.437,1960.9,1960.8,5.56418]
[1742574647893,1.4142,1961.0,1960.9,1.02042]
[1742574648189,1.4142,1961.0,1960.9,2.36842]
[1742574648382,5.14295,1961.1,1961.0,1.02037]
[1742574648383,4.1226,1961.1,1961.0,1.02037]
[1742574648689,0.6856,1961.1,1961.0,5.57617]
[1742574648892,0.00765834,1961.2,1961.1,1.02032]
[1742574649095,0.00765834,1961.2,1961.1,3.75342]
[1742574650487,0.00765834,1961.2,1961.1,3.08022]
[1742574650681,1.38345834,1961.2,1961.1,3.08022]
[1742574651088,0.00765834,1961.2,1961.1,3.08022]
[1742574651496,1.41855834,1961.2,1961.1,3.08022]
[1742574651997,0.00765834,1961.2,1961.1,3.08022]
[1742574654193,0.00765834,1961.2,1961.1,2.36832]
[1742574654397,0.00765834,1961.2,1961.1,3.04162]
[1742574654898,1.35985834,1961.2,1961.1,3.04162]
[1742574655593,2.38012834,1961.2,1961.1,3.04162]
[1742574655793,1.02036,1961.1,1961.0,1.02034]
[1742574656093,3.07816,1961.1,1961.0,2.32724]
[1742574656289,3.07816,1961.1,1961.0,5.53504]
[1742574658404,3.07816,1961.1,1961.0,3.2078]
[1742574658586,2.0578,1961.1,1961.0,1.02037]
[1742574658790,3.07815,1961.1,1961.0,1.02037]
[1742574659091,3.07815,1961.1,1961.0,2.37627]
[1742574659492,1.02037,1961.0,1960.9,4.22818]
[1742574659693,1.02046,1960.9,1960.8,4.22822]
[1742574659900,6.41442,1961.0,1960.9,1.02042]
[1742574660090,3.436,1961.0,1960.9,2.34562]
[1742574660292,3.436,1961.0,1960.9,3.02622]
[1742574660697,4.1416,1961.1,1961.0,1.02037]
[1742574660894,4.1416,1961.1,1961.0,5.55337]
[1742574661200,5.16192,1961.1,1961.0,2.34557]
[1742574661995,4.1416,1961.1,1961.0,5.55337]
[1742574662902,0.00765834,1961.2,1961.1,1.02032]
[1742574663103,0.00765834,1961.2,1961.1,2.32272]
[1742574664004,3.2078,1962.0,1961.5,1.02011]
[1742574664204,0.6712,1961.7,1961.6,1.02006]
[1742574667903,3.44365834,1961.8,1961.7,1.02001]
[1742574668201,1.02004,1961.7,1961.6,1.02001]
[1742574668398,1.02006,1961.6,1961.5,1.02771834]
[1742574668603,4.45506,1961.6,1961.5,1.02771834]
[1742574669196,4.108,1961.6,1961.5,1.02771834]
[1742574669405,4.108,1961.6,1961.5,4.23551834]
[1742574669907,3.44265834,1961.8,1961.7,1.02001]
[1742574670106,0.00765834,1961.8,1961.7,1.02001]
[1742574670506,1.30185834,1961.8,1961.7,1.02001]
[1742574670709,2.32181834,1961.8,1961.7,1.02001]
[1742574672009,1.02006,1961.7,1961.6,1.02002]
[1742574672205,5.77546,1961.7,1961.6,1.02002]
[1742574672406,4.7554,1961.7,1961.6,1.02002]
[1742574673208,4.7554,1961.7,1961.6,1.67182]
[1742574673937,4.7554,1961.7,1961.6,1.02002]
[1742574674511,1.3204,1961.7,1961.6,1.02002]
[1742574674712,3.44265834,1961.8,1961.7,1.02001]
[1742574674907,4.76305834,1961.8,1961.7,4.22781]
[1742574675313,5.78301834,1961.8,1961.7,1.02001]
[1742574676198,4.76305834,1961.8,1961.7,1.02001]
[1742574676603,5.78301834,1961.8,1961.7,1.02001]
[1742574676807,4.76305834,1961.8,1961.7,1.02001]
[1742574677301,5.78301834,1961.8,1961.7,1.02001]
[1742574677507,4.76305834,1961.8,1961.7,4.22781]
[1742574678106,1.32805834,1961.8,1961.7,4.92571]
[1742574678511,4.76205834,1961.8,1961.6,1.02002]
[1742574678813,1.02006,1961.6,1961.5,1.02771834]
[1742574679414,2.32466,1961.6,1961.5,1.02771834]
[1742574679911,1.3046,1961.6,1961.5,1.02771834]
[1742574680210,1.3046,1961.6,1961.5,1.69781834]
[1742574680415,1.3046,1961.6,1961.5,3.07721834]
[1742574680809,3.44165834,1961.8,1961.7,1.02001]
[1742574681007,5.76621834,1961.8,1961.7,4.22781]
[1742574681405,4.74625834,1961.8,1961.7,4.22781]
[1742574682118,3.44165834,1961.8,1961.7,4.22781]
[1742574682431,4.73875834,1961.8,1961.7,4.22781]
[1742574684608,5.75871834,1961.8,1961.7,1.02001]
[1742574685011,1.02001,1961.7,1961.6,2.39942]
[1742574685305,3.02031,1961.7,1961.6,2.39942]
[1742574687121,1.2946,1961.7,1961.6,2.39942]
[1742574687326,4.73835834,1961.8,1961.7,1.02001]
[1742574687616,1.30435834,1961.8,1961.7,2.41001]
[1742574688112,2.32431834,1961.8,1961.7,2.41001]
[1742574688311,1.30435834,1961.8,1961.7,2.41001]
[1742574688714,0.00765834,1961.8,1961.7,2.41001]
[1742574689418,0.00765834,1961.8,1961.7,5.61781]
[1742574690721,1.42335834,1961.8,1961.7,5.61781]
[1742574691022,1.42335834,1961.8,1961.7,4.22781]
[1742574691218,1.42335834,1961.8,1961.7,1.02001]
[1742574691420,2.13245834,1961.8,1961.7,1.02001]
[1742574691620,2.13245834,1961.8,1961.7,2.37901]
[1742574691821,6.58641834,1961.8,1961.7,1.02001]
[1742574693516,5.56645834,1961.8,1961.7,1.02001]
[1742574693716,5.56645834,1961.8,1961.7,2.38301]
[1742574694411,0.00765834,1961.8,1961.7,3.04331]
[1742574694621,0.00765834,1961.8,1961.7,3.69531]
[1742574695016,1.9949,1962.1,1962.0,1.01985]
[1742574695818,1.9949,1962.1,1962.0,3.04315]
[1742574697122,2.7022,1962.1,1962.0,3.04315]
[1742574698623,2.7022,1962.1,1961.9,1.01986]
[1742574698922,2.54977,1961.9,1961.5,0.00765834]
[1742574699119,1.02003,1961.7,1961.6,1.02002]
[1742574699520,3.13291,1961.7,1961.6,1.02002]
[1742574699715,2.1129,1961.7,1961.6,1.02002]
[1742574699928,2.1129,1961.7,1961.6,4.22782]
[1742574700324,2.1129,1961.7,1961.6,5.55072]
[1742574701030,3.433,1961.8,1961.7,1.02001]
[1742574701225,5.5459,1961.8,1961.7,2.34291]
[1742574701531,6.40976122,1961.8,1961.7,2.34291]
[1742574703132,5.5459,1961.8,1961.7,2.34291]
[1742574704631,23.95103894,1962.2,1962.1,1.0198]
[1742574704856,28.94569056,1962.2,1962.1,1.0198]
[1742574705031,1.01985,1962.1,1962.0,1.01981]
[1742574705335,2.72938604,1962.1,1962.0,1.01981]
[1742574705526,1.01991,1962.0,1961.9,1.01988]
[1742574705725,5.15821,1962.0,1961.9,1.01988]
[1742574705928,1.01996,1961.9,1961.8,1.01993]
[1742574706136,1.01996,1961.8,1961.7,1.01996]
[1742574706325,5.11176,1961.8,1961.7,1.01996]
[1742574706525,7.39471162,1961.8,1961.7,1.01996]
[1742574707038,6.37475162,1961.8,1961.7,1.01996]
[1742574707329,6.37475162,1961.8,1961.7,1.71006]
[1742574707528,5.511,1961.8,1961.7,1.71006]
[1742574707735,4.1383,1962.0,1961.9,1.0199]
[1742574708057,7.08009276,1962.0,1961.9,1.0199]
[1742574708229,6.37479276,1962.0,1961.9,1.0199]
[1742574708426,2.94179276,1962.0,1961.9,1.0199]
[1742574708622,3.2078,1962.1,1961.8,1.9682]
[1742574708623,4.07159276,1962.1,1962.0,1.01985]
[1742574708825,2.16279276,1962.1,1962.0,1.01985]
[1742574709226,2.16279276,1962.1,1962.0,3.03845]
[1742574709430,1.299,1962.1,1962.0,3.03845]
[1742574709935,2.1626062,1962.1,1962.0,3.03845]
[1742574711033,1.299,1962.1,1962.0,3.03845]
[1742574711334,28.08933894,1962.2,1962.0,3.03845]
[1742574711335,3.44065834,1962.2,1962.1,1.0198]
[1742574711635,4.30401325,1962.2,1962.1,2.3959]
[1742574712635,0.87082562,1962.2,1962.1,2.3959]
[1742574712944,3.24572619,1962.2,1962.1,2.3959]
[1742574713235,1.01985,1962.0,1961.9,4.22766]
[1742574713440,1.01985,1962.0,1961.9,2.35276]
[1742574713932,4.60036785,1962.0,1961.9,2.35276]
[1742574714355,1.01996,1961.9,1961.8,1.01994]
[1742574714532,2.37506,1961.9,1961.8,2.35284]
[1742574715037,5.80806,1961.9,1961.8,1.3329]
[1742574715238,6.67127785,1961.9,1961.8,2.35286]
[1742574715843,5.80806,1961.9,1961.8,2.35286]
[1742574716638,4.7881,1961.9,1961.8,2.35286]
[1742574716837,3.433,1962.1,1962.0,1.01985]
[1742574717044,4.7718,1962.1,1962.0,4.22765]
[1742574717345,1.3388,1962.1,1962.0,4.22765]
[1742574717541,2.3586,1962.1,1962.0,6.19325]
[1742574717738,2.3586,1962.1,1962.0,2.33925]
[1742574717928,1.0199,1962.0,1961.9,1.01985]
[1742574718133,6.4542,1962.0,1961.9,1.01985]
[1742574718333,1.2939,1962.0,1961.9,5.62035]
[1742574718544,1.2939,1962.0,1961.9,6.27135]
[1742574719843,1.35845834,1962.2,1961.9,5.2515]
[1742574720138,0.00765834,1962.2,1962.1,4.2276]
[1742574720740,0.00765834,1962.2,1962.1,5.6203]
[1742574721240,8.34e-06,1962.2,1962.1,5.6203]
[1742574721439,20.64959894,1962.3,1962.2,1.01975]
[1742574721643,20.64959894,1962.3,1962.2,2.33595]
[1742574721873,20.64959894,1962.3,1962.2,5.49175]
[1742574722033,20.64959894,1962.3,1962.2,2.99175]
[1742574723737,17.86419894,1962.3,1962.2,5.49175]
[1742574723944,16.73263894,1962.3,1962.2,5.49175]
[1742574724143,15.68849894,1962.3,1962.2,6.1418611]
[1742574724340,0.00765834,1962.4,1962.3,1.0197]
[1742574724538,2.37513,1963.0,1962.9,1.01938]
[1742574725345,2.37513,1963.0,1962.9,2.40218]
[1742574725845,1.3558,1963.0,1962.9,2.40218]
[1742574727240,2.37513,1963.0,1962.9,1.01938]
[1742574727443,2.37513,1963.0,1962.9,4.22718]
[1742574729853,1.3558,1963.0,1962.9,4.22718]
[1742574730450,1.3558,1963.0,1962.9,4.92378]
[1742574732755,2.37513,1963.0,1962.9,4.92378]
[1742574733753,2.37513,1963.0,1962.9,3.2078]
[1742574734054,1.01938,1962.9,1962.8,0.00765834]
[1742574734345,6.47998,1962.9,1962.8,0.00765834]
[1742574734944,6.47998,1962.9,1962.8,1.02709834]
[1742574735737,5.4606,1962.9,1962.8,1.02709834]
[1742574735941,6.47998,1962.9,1962.8,1.02709834]
[1742574736948,4.7998,1962.9,1962.8,1.02709834]
[1742574737155,4.7998,1962.9,1962.8,4.23489834]
[1742574737346,3.431,1962.9,1962.8,4.23489834]
[1742574737651,1.3904,1963.0,1962.9,1.01938]
[1742574737852,2.40973,1963.0,1962.9,3.00998]
[1742574738152,2.40973,1963.0,1962.8,3.21545834]
[1742574738153,1.01938,1962.9,1962.8,4.23487834]
[1742574738396,1.3904,1962.9,1962.8,5.56739834]
[1742574739050,2.40978,1962.9,1962.8,5.56739834]
[1742574739353,1.3904,1962.9,1962.8,5.56739834]
[1742574740350,1.3904,1962.9,1962.8,2.35959834]
[1742574740548,1.01962,1962.5,1962.3,3.2078]
[1742574740755,2.54872,1962.8,1962.5,1.01957]
[1742574740756,3.431,1962.6,1962.5,1.01957]
[1742574741051,3.431,1962.6,1962.5,4.87057]
[1742574741444,3.431,1962.6,1962.5,1.66277]
[1742574741445,4.45054,1962.6,1962.5,1.66277]
[1742574741657,4.45054,1962.6,1962.5,4.87057]
[1742574741845,3.431,1962.6,1962.5,4.87057]
[1742574742648,3.431,1962.6,1962.5,6.24087]
[1742574743151,4.45054,1962.6,1962.5,6.24087]
[1742574743353,3.431,1962.6,1962.5,6.24087]
[1742574743553,3.43865834,1962.7,1962.6,1.01954]
[1742574743858,0.00765834,1962.7,1962.6,2.38984]
[1742574744649,1.02714834,1962.7,1962.6,2.38984]
[1742574744851,0.00765834,1962.7,1962.6,2.38984]
[1742574745250,1.02714834,1962.7,1962.6,2.38984]
[1742574747056,0.00765834,1962.7,1962.6,2.38984]
[1742574747251,1.02714834,1962.7,1962.6,2.38984]
[1742574748460,0.00765834,1962.7,1962.6,2.38984]
[1742574749757,4.1268,1963.1,1963.0,1.01933]
[1742574749950,0.6958,1963.1,1963.0,41.81933]
[1742574750153,3.2078,1963.3,1963.2,1.01923]
[1742574750351,7.65798,1963.3,1963.2,1.01923]
[1742574750551,4.45018,1963.3,1963.2,1.01923]
[1742574750956,4.45018,1963.3,1963.2,1.67913]
[1742574751158,4.45018,1963.3,1963.2,3.07833]
[1742574751382,4.45018,1963.3,1963.2,1.3992]
[1742574751653,4.45018,1963.3,1963.2,2.41843]
[1742574752049,3.431,1963.3,1963.2,2.41843]
[1742574752761,4.45018,1963.3,1963.2,2.41843]
[1742574753358,4.45018,1963.3,1963.2,1.3992]
[1742574753558,6.15712321,1963.3,1963.2,1.01923]
[1742574754257,1.01923,1963.2,1963.1,1.01924]
[1742574754457,1.01937,1963.0,1962.9,1.01933]
[1742574754953,1.01937,1963.0,1962.9,2.39463]
[1742574755159,2.36427,1963.0,1962.9,2.39463]
[1742574755355,4.07116321,1963.0,1962.9,2.39463]
[1742574755766,2.35449321,1963.0,1962.9,2.39463]
[1742574756062,0.86236514,1963.0,1962.9,5.60243]
[1742574756253,3.43,1963.1,1963.0,1.01933]
[1742574756454,3.43,1963.1,1963.0,2.39463]
[1742574756755,6.15631285,1963.1,1963.0,2.39463]
[1742574757160,6.15631285,1963.1,1962.8,1.01941]
[1742574757161,5.13703285,1963.1,1962.8,1.01941]
[1742574757361,1.01947,1962.8,1962.7,1.01944]
[1742574757563,4.44947,1962.8,1962.7,2.31804]
[1742574758067,4.44949,1962.8,1962.7,4.22729]
[1742574758266,5.83569,1962.8,1962.7,4.22729]
[1742574758465,7.54272285,1962.8,1962.7,2.31809]
[1742574759062,1.01949,1962.7,1962.6,42.24950001]
[1742574759260,1.88185514,1962.7,1962.6,1.2986]
[1742574759460,1.01959,1962.5,1962.4,0.00765834]
[1742574759658,3.43,1962.5,1962.0,3.2078]
[1742574759907,5.09857,1962.3,1962.0,1.01985]
[1742574760067,1.0198,1962.1,1962.0,1.01985]
[1742574760261,6.85630201,1962.2,1962.1,1.0198]
[1742574760458,8.15400201,1962.2,1962.1,1.0198]
[1742574761056,7.30914514,1962.2,1962.1,2.37]
[1742574761258,6.44678,1962.2,1962.1,2.37]
[1742574761471,6.44678,1962.2,1962.1,1.3502]
[1742574761661,6.44678,1962.2,1962.1,2.37]
[1742574763268,6.44678,1962.2,1962.1,1.3502]
[1742574763471,1.0198,1962.1,1962.0,3.21545834]
[1742574763775,2.4242,1962.1,1962.0,4.23530834]
[1742574764074,2.4242,1962.1,1962.0,5.55680834]
[1742574764467,1.4044,1962.1,1962.0,5.55680834]
[1742574764663,4.1293,1962.2,1962.1,1.0198]
[1742574764870,5.15005,1962.2,1962.1,1.0198]
[1742574765272,1.71905,1962.2,1962.1,1.0198]
[1742574765472,5.15005,1962.2,1962.1,1.0198]
[1742574765971,1.71905,1962.2,1962.1,1.0198]
[1742574766169,5.15005,1962.2,1962.1,1.0198]
[1742574766672,1.4044,1962.3,1962.2,1.01975]
[1742574766875,5.8551,1962.3,1962.2,4.22755]
[1742574767070,5.8551,1962.3,1962.2,1.01975]
[1742574767275,1.4044,1962.3,1962.2,43.11045]
[1742574767466,0.00765834,1962.6,1962.5,1.01959]
[1742574767664,3.431,1963.0,1962.9,1.01938]
[1742574767863,4.45033,1963.0,1962.9,1.01938]
[1742574768067,4.45033,1963.0,1962.9,41.81938]
[1742574768273,3.431,1963.0,1962.9,1.01938]
[1742574768877,4.45033,1963.0,1962.9,2.31008]
[1742574769076,3.431,1963.0,1962.9,2.31008]
[1742574769275,4.45033,1963.0,1962.9,2.31008]
[1742574770590,1.01938,1962.9,1962.8,41.81938]
[1742574770791,2.30718,1962.9,1962.8,1.4252]
[1742574770993,1.0197,1962.3,1962.2,1.01971]
[1742574771189,4.4507,1962.3,1962.2,1.01971]
[1742574771992,5.7385,1962.3,1962.2,1.01971]
[1742574772696,1.01975,1962.2,1962.1,2.44495]
[1742574772893,2.42635,1962.2,1962.1,2.44495]
[1742574773496,1.4066,1962.2,1962.1,2.44495]
[1742574773796,2.42635,1962.2,1962.1,2.44495]
[1742574777298,2.42635,1962.2,1962.0,0.00765834]
[1742574777299,1.0198,1962.1,1962.0,0.00765834]
[1742574777502,5.8331,1962.1,1962.0,0.00765834]
[1742574777995,5.8331,1962.1,1962.0,1.38195834]
[1742574778702,5.8331,1962.1,1962.0,0.00765834]
[1742574779199,1.02001,1961.7,1961.6,1.02004]